[Event "*** SCC Grand Prix: Titled Tuesday Blitz"]
[Site "Chess.com"]
[Date "2020.06.02"]
[Round "1"]
[White "Ati1517"]
[Black "731291"]
[Result "0-1"]
[WhiteElo "2226"]
[BlackElo "2568"]
[TimeControl "180+1"]
[EndTime "10:08:31 PDT"]
[Termination "731291 won by resignation"]

1. d4 {[%clk 0:03:00.9]} 1... Nf6 {[%clk 0:01:36.8]} 2. c4 {[%clk 0:02:57.9]}
2... e6 {[%clk 0:01:35.7]} 3. Nc3 {[%clk 0:02:56.6]} 3... Bb4 {[%clk 0:01:32.6]}
4. Qc2 {[%clk 0:02:54.7]} 4... d6 {[%clk 0:01:30.6]} 5. Nf3 {[%clk 0:02:46.3]}
5... Nc6 {[%clk 0:01:27]} 6. Bd2 {[%clk 0:02:28.7]} 6... O-O {[%clk 0:01:21.5]}
7. g3 {[%clk 0:02:18.1]} 7... e5 {[%clk 0:01:18.2]} 8. d5 {[%clk 0:02:13.1]}
8... Ne7 {[%clk 0:01:17.3]} 9. e4 {[%clk 0:02:06.4]} 9... a6 {[%clk 0:00:55.4]}
10. Bg2 {[%clk 0:02:03]} 10... Bc5 {[%clk 0:00:50.2]} 11. O-O {[%clk 0:02:01.4]}
11... Ba7 {[%clk 0:00:50.4]} 12. b4 {[%clk 0:01:56.5]} 12... Bg4 {[%clk
0:00:44.5]} 13. h3 {[%clk 0:01:51.5]} 13... Bd7 {[%clk 0:00:43.7]} 14. Be3
{[%clk 0:01:47]} 14... Bxe3 {[%clk 0:00:42.3]} 15. fxe3 {[%clk 0:01:46.6]} 15...
c6 {[%clk 0:00:39.4]} 16. dxc6 {[%clk 0:01:30.5]} 16... Nxc6 {[%clk 0:00:35.9]}
17. a3 {[%clk 0:01:29.2]} 17... Rc8 {[%clk 0:00:35.3]} 18. Rad1 {[%clk
0:01:26.1]} 18... Qe7 {[%clk 0:00:32.6]} 19. Qd3 {[%clk 0:01:14.6]} 19... Be6
{[%clk 0:00:31.3]} 20. Nd5 {[%clk 0:01:11.4]} 20... Bxd5 {[%clk 0:00:31.3]} 21.
cxd5 {[%clk 0:01:08]} 21... Nb8 {[%clk 0:00:31.4]} 22. Rc1 {[%clk 0:01:06.5]}
22... Rc7 {[%clk 0:00:30.8]} 23. Rc2 {[%clk 0:00:57.4]} 23... Rfc8 {[%clk
0:00:30.3]} 24. Rfc1 {[%clk 0:00:57]} 24... Qd8 {[%clk 0:00:30.3]} 25. Nh4
{[%clk 0:00:53]} 25... g6 {[%clk 0:00:29.2]} 26. Nf3 {[%clk 0:00:50.3]} 26...
Nbd7 {[%clk 0:00:29.4]} 27. Nd2 {[%clk 0:00:48.2]} 27... Rxc2 {[%clk 0:00:29.2]}
28. Rxc2 {[%clk 0:00:47.9]} 28... Rc7 {[%clk 0:00:29]} 29. a4 {[%clk 0:00:34.9]}
29... Qc8 {[%clk 0:00:25.1]} 30. Rc4 {[%clk 0:00:34.7]} 30... Rxc4 {[%clk
0:00:24.3]} 31. Nxc4 {[%clk 0:00:34]} 31... Qc7 {[%clk 0:00:24.1]} 32. a5 {[%clk
0:00:31.8]} 32... Kg7 {[%clk 0:00:23.6]} 33. Bf1 {[%clk 0:00:31.4]} 33... b6
{[%clk 0:00:21.7]} 34. axb6 {[%clk 0:00:30.3]} 34... Nxb6 {[%clk 0:00:22.6]} 35.
Nxb6 {[%clk 0:00:30.3]} 35... Qxb6 {[%clk 0:00:23.5]} 36. Bg2 {[%clk 0:00:21.5]}
36... Qxb4 {[%clk 0:00:21.9]} 37. Qxa6 {[%clk 0:00:21]} 37... Qc5 {[%clk
0:00:19.4]} 38. Qd3 {[%clk 0:00:20.2]} 38... h5 {[%clk 0:00:19.1]} 39. Kh2
{[%clk 0:00:19.4]} 39... Nd7 {[%clk 0:00:19.4]} 40. Qd2 {[%clk 0:00:16.6]} 40...
Qc4 {[%clk 0:00:19]} 41. Qf2 {[%clk 0:00:15.7]} 41... Nc5 {[%clk 0:00:19.2]} 42.
Qf3 {[%clk 0:00:15.7]} 42... Qc3 {[%clk 0:00:19.1]} 43. g4 {[%clk 0:00:15.5]}
43... hxg4 {[%clk 0:00:18.7]} 44. hxg4 {[%clk 0:00:15.6]} 44... Qe1 {[%clk
0:00:18.5]} 45. Kh3 {[%clk 0:00:15.5]} 45... Nd3 {[%clk 0:00:18.4]} 46. Bf1
{[%clk 0:00:15.4]} 46... Nf2+ {[%clk 0:00:18.2]} 47. Kg2 {[%clk 0:00:15.6]}
47... Nd1 {[%clk 0:00:17.9]} 48. Be2 {[%clk 0:00:14.3]} 48... Qd2 {[%clk
0:00:18.1]} 49. Kg3 {[%clk 0:00:12.7]} 49... Nxe3 {[%clk 0:00:17.9]} 50. g5
{[%clk 0:00:13]} 50... Qe1+ {[%clk 0:00:17.9]} 51. Kh2 {[%clk 0:00:11.6]} 51...
Qd2 {[%clk 0:00:17.8]} 52. Kh3 {[%clk 0:00:11.4]} 52... Nc2 {[%clk 0:00:17.2]}
53. Qf6+ {[%clk 0:00:10.8]} 53... Kg8 {[%clk 0:00:17.1]} 54. Bg4 {[%clk
0:00:10.4]} 54... Qe3+ {[%clk 0:00:16.5]} 55. Kh4 {[%clk 0:00:09.9]} 55... Qe1+
{[%clk 0:00:16]} 56. Kh3 {[%clk 0:00:09.7]} 56... Qe3+ {[%clk 0:00:16]} 57. Kh4
{[%clk 0:00:09.3]} 57... Qxe4 {[%clk 0:00:16.2]} 58. Qxd6 {[%clk 0:00:08.5]}
58... Qe1+ {[%clk 0:00:15.5]} 59. Kh3 {[%clk 0:00:07.7]} 59... Qe3+ {[%clk
0:00:16.1]} 60. Kh4 {[%clk 0:00:07.8]} 60... Qf2+ {[%clk 0:00:16.3]} 61. Kh3
{[%clk 0:00:08]} 61... Ne3 {[%clk 0:00:16.1]} 62. Qd8+ {[%clk 0:00:07.2]} 62...
Kh7 {[%clk 0:00:15.9]} 63. Qf6 {[%clk 0:00:06.8]} 63... Qg2+ {[%clk 0:00:16.1]}
0-1

[Event "*** SCC Grand Prix: Titled Tuesday Blitz"]
[Site "Chess.com"]
[Date "2020.06.02"]
[Round "1"]
[White "giantslayer83"]
[Black "Ginzburg_Yakov"]
[Result "1-0"]
[WhiteElo "2684"]
[BlackElo "2337"]
[TimeControl "180+1"]
[EndTime "10:08:33 PDT"]
[Termination "giantslayer83 won on time"]

1. d4 {[%clk 0:02:43.7]} 1... d5 {[%clk 0:02:58.6]} 2. Bf4 {[%clk 0:02:41.7]}
2... Nf6 {[%clk 0:02:56.1]} 3. e3 {[%clk 0:02:42]} 3... c5 {[%clk 0:02:55.6]} 4.
c3 {[%clk 0:02:41]} 4... Nc6 {[%clk 0:02:55]} 5. Nd2 {[%clk 0:02:35.5]} 5... Qb6
{[%clk 0:02:41.5]} 6. Qb3 {[%clk 0:02:34.7]} 6... Qxb3 {[%clk 0:02:30.8]} 7.
axb3 {[%clk 0:02:31.2]} 7... e6 {[%clk 0:02:30.3]} 8. h3 {[%clk 0:02:30.5]} 8...
Bd7 {[%clk 0:02:27]} 9. Ngf3 {[%clk 0:02:30.2]} 9... Be7 {[%clk 0:02:16.1]} 10.
dxc5 {[%clk 0:02:26.3]} 10... Bxc5 {[%clk 0:02:15.6]} 11. b4 {[%clk 0:02:26.7]}
11... Bb6 {[%clk 0:02:06.8]} 12. b5 {[%clk 0:02:26.8]} 12... Ne7 {[%clk
0:02:04]} 13. Bd3 {[%clk 0:02:22.1]} 13... Ng6 {[%clk 0:02:02.2]} 14. Bh2 {[%clk
0:02:21.4]} 14... O-O {[%clk 0:02:00.7]} 15. O-O {[%clk 0:02:20.9]} 15... Rfd8
{[%clk 0:01:54.2]} 16. Ne5 {[%clk 0:02:20]} 16... Be8 {[%clk 0:01:48.9]} 17. Ra3
{[%clk 0:02:12.9]} 17... Rac8 {[%clk 0:01:39.8]} 18. Nxg6 {[%clk 0:02:03.1]}
18... hxg6 {[%clk 0:01:39.5]} 19. Rd1 {[%clk 0:02:02.5]} 19... Nd7 {[%clk
0:01:38.7]} 20. Be2 {[%clk 0:02:00.5]} 20... Nc5 {[%clk 0:01:34]} 21. Kf1 {[%clk
0:01:53.4]} 21... f6 {[%clk 0:01:15.7]} 22. Raa1 {[%clk 0:01:45.2]} 22... e5
{[%clk 0:01:12.7]} 23. b4 {[%clk 0:01:43]} 23... Ne6 {[%clk 0:01:09.4]} 24. c4
{[%clk 0:01:43.2]} 24... dxc4 {[%clk 0:01:04.5]} 25. Bxc4 {[%clk 0:01:30.9]}
25... Bf7 {[%clk 0:01:02.3]} 26. Rac1 {[%clk 0:01:28.6]} 26... Nc7 {[%clk
0:00:48.6]} 27. Bxf7+ {[%clk 0:01:27.1]} 27... Kxf7 {[%clk 0:00:48.7]} 28. Nc4
{[%clk 0:01:09.8]} 28... Nxb5 {[%clk 0:00:48]} 29. Rxd8 {[%clk 0:01:09.3]} 29...
Rxd8 {[%clk 0:00:46]} 30. f4 {[%clk 0:01:08.6]} 30... e4 {[%clk 0:00:41]} 31. g4
{[%clk 0:01:02.7]} 31... Rd3 {[%clk 0:00:33.8]} 32. Kf2 {[%clk 0:00:56.7]} 32...
Rb3 {[%clk 0:00:20.1]} 33. Rd1 {[%clk 0:00:56.6]} 33... Rxb4 {[%clk 0:00:18.7]}
34. Nxb6 {[%clk 0:00:55.3]} 34... axb6 {[%clk 0:00:17.1]} 35. Rd7+ {[%clk
0:00:56.2]} 35... Ke6 {[%clk 0:00:17.3]} 36. Rxb7 {[%clk 0:00:57.1]} 36... Nc3
{[%clk 0:00:15.9]} 37. Rxg7 {[%clk 0:00:45.4]} 37... Rb2+ {[%clk 0:00:15.8]} 38.
Kg1 {[%clk 0:00:45.3]} 38... Nd5 {[%clk 0:00:14]} 39. Rxg6 {[%clk 0:00:44.6]}
39... Nxe3 {[%clk 0:00:13.4]} 40. f5+ {[%clk 0:00:45.1]} 40... Ke7 {[%clk
0:00:09.9]} 41. Rg7+ {[%clk 0:00:43.2]} 41... Kf8 {[%clk 0:00:10]} 42. Rb7
{[%clk 0:00:41.8]} 42... Rg2+ {[%clk 0:00:09]} 43. Kh1 {[%clk 0:00:42]} 43...
Rb2 {[%clk 0:00:09.7]} 44. Bd6+ {[%clk 0:00:41.7]} 44... Kg8 {[%clk 0:00:09.5]}
45. Bc5 {[%clk 0:00:36.2]} 45... Nc4 {[%clk 0:00:09.6]} 46. Bd4 {[%clk
0:00:35.7]} 46... Rb1+ {[%clk 0:00:08]} 47. Kg2 {[%clk 0:00:35.3]} 47... e3
{[%clk 0:00:07.6]} 48. Kf3 {[%clk 0:00:35.1]} 48... Rf1+ {[%clk 0:00:07.4]} 49.
Ke2 {[%clk 0:00:32]} 49... Rf2+ {[%clk 0:00:07.8]} 50. Kd3 {[%clk 0:00:32.2]}
50... Nb2+ {[%clk 0:00:04.7]} 51. Kxe3 {[%clk 0:00:29.7]} 51... Nd1+ {[%clk
0:00:04.4]} 52. Ke4 {[%clk 0:00:29.3]} 52... Re2+ {[%clk 0:00:04.4]} 53. Kf3
{[%clk 0:00:28.9]} 53... Rd2 {[%clk 0:00:04]} 54. Bxf6 {[%clk 0:00:28.7]} 54...
Rd3+ {[%clk 0:00:04.3]} 55. Kf4 {[%clk 0:00:28.5]} 55... Nf2 {[%clk 0:00:04.2]}
56. Kg5 {[%clk 0:00:27.2]} 56... Nxh3+ {[%clk 0:00:04.2]} 57. Kh6 {[%clk
0:00:27.3]} 57... Nf4 {[%clk 0:00:03.1]} 58. Be5 {[%clk 0:00:22.9]} 58... Nd5
{[%clk 0:00:02.7]} 59. Kg6 {[%clk 0:00:20.3]} 1-0

[Event "*** SCC Grand Prix: Titled Tuesday Blitz"]
[Site "Chess.com"]
[Date "2020.06.02"]
[Round "1"]
[White "Carnivoras"]
[Black "tylityli"]
[Result "1-0"]
[WhiteElo "2623"]
[BlackElo "2284"]
[TimeControl "180+1"]
[EndTime "10:08:33 PDT"]
[Termination "Carnivoras won on time"]

1. d4 {[%clk 0:03:00.9]} 1... Nf6 {[%clk 0:02:58.8]} 2. Nf3 {[%clk 0:03:01.8]}
2... d5 {[%clk 0:02:56.9]} 3. Bg5 {[%clk 0:03:02.3]} 3... Ne4 {[%clk 0:02:53.9]}
4. Bh4 {[%clk 0:03:01.6]} 4... Bf5 {[%clk 0:02:51.4]} 5. e3 {[%clk 0:03:00.5]}
5... g6 {[%clk 0:02:47.6]} 6. Nbd2 {[%clk 0:02:56.9]} 6... Bg7 {[%clk
0:02:47.5]} 7. Bd3 {[%clk 0:02:56]} 7... O-O {[%clk 0:02:45.5]} 8. O-O {[%clk
0:02:56.1]} 8... Nd7 {[%clk 0:02:41.7]} 9. h3 {[%clk 0:02:48.1]} 9... Nxd2
{[%clk 0:02:31]} 10. Qxd2 {[%clk 0:02:46.6]} 10... Bxd3 {[%clk 0:02:30.3]} 11.
Qxd3 {[%clk 0:02:47]} 11... c5 {[%clk 0:02:13.1]} 12. c3 {[%clk 0:02:44.1]}
12... c4 {[%clk 0:02:09.2]} 13. Qe2 {[%clk 0:02:43.2]} 13... Nf6 {[%clk
0:02:07.1]} 14. Nd2 {[%clk 0:02:42.2]} 14... Qb6 {[%clk 0:02:00.8]} 15. Rab1
{[%clk 0:02:41.1]} 15... Qe6 {[%clk 0:02:00.4]} 16. Rfe1 {[%clk 0:02:40.1]}
16... Ne4 {[%clk 0:01:58.2]} 17. Nf1 {[%clk 0:02:32.8]} 17... f5 {[%clk
0:01:55.5]} 18. f3 {[%clk 0:02:30.2]} 18... Nd6 {[%clk 0:01:50.5]} 19. Bg5
{[%clk 0:02:21]} 19... Bf6 {[%clk 0:01:45.1]} 20. Bf4 {[%clk 0:02:18.7]} 20...
b5 {[%clk 0:01:41.7]} 21. Nd2 {[%clk 0:02:17.7]} 21... g5 {[%clk 0:01:33.1]} 22.
Bxd6 {[%clk 0:02:17.2]} 22... exd6 {[%clk 0:01:27.4]} 23. e4 {[%clk 0:02:15]}
23... dxe4 {[%clk 0:01:23.3]} 24. fxe4 {[%clk 0:02:14.9]} 24... f4 {[%clk
0:01:18.7]} 25. e5 {[%clk 0:02:04.9]} 25... Bg7 {[%clk 0:01:05.8]} 26. exd6
{[%clk 0:02:01.4]} 26... Qxd6 {[%clk 0:01:04.4]} 27. Qe6+ {[%clk 0:02:00.2]}
27... Qxe6 {[%clk 0:01:03.8]} 28. Rxe6 {[%clk 0:02:01.1]} 28... Rfe8 {[%clk
0:01:03.7]} 29. Rbe1 {[%clk 0:02:00.3]} 29... Kf7 {[%clk 0:01:02]} 30. Nf3
{[%clk 0:01:58.7]} 30... h6 {[%clk 0:01:00.9]} 31. Rxe8 {[%clk 0:01:27.1]} 31...
Rxe8 {[%clk 0:00:59.7]} 32. Rxe8 {[%clk 0:01:28]} 32... Kxe8 {[%clk 0:00:59.9]}
33. Kf2 {[%clk 0:01:28.9]} 33... Ke7 {[%clk 0:00:58.8]} 34. Nd2 {[%clk
0:01:29.3]} 34... Ke6 {[%clk 0:00:56.8]} 35. Kf3 {[%clk 0:01:27.3]} 35... Kf5
{[%clk 0:00:50.6]} 36. Ne4 {[%clk 0:01:26.1]} 36... Bf8 {[%clk 0:00:49.9]} 37.
g3 {[%clk 0:01:02.5]} 37... fxg3 {[%clk 0:00:37.3]} 38. Nxg3+ {[%clk 0:01:03.4]}
38... Ke6 {[%clk 0:00:35.2]} 39. Ke4 {[%clk 0:01:03.2]} 39... a5 {[%clk
0:00:28.4]} 40. d5+ {[%clk 0:01:01.7]} 40... Kd6 {[%clk 0:00:27.6]} 41. Nf5+
{[%clk 0:01:00.3]} 41... Kc5 {[%clk 0:00:26.4]} 42. Nd4 {[%clk 0:00:59.3]} 42...
Kd6 {[%clk 0:00:18.2]} 43. Nxb5+ {[%clk 0:00:58.5]} 43... Kc5 {[%clk 0:00:18.4]}
44. Nd4 {[%clk 0:00:58.7]} 44... Kd6 {[%clk 0:00:16.7]} 45. Ne6 {[%clk
0:00:58.3]} 45... Be7 {[%clk 0:00:16]} 46. Ng7 {[%clk 0:00:58.9]} 46... Bf8
{[%clk 0:00:12.5]} 47. Nf5+ {[%clk 0:00:59.1]} 47... Kc5 {[%clk 0:00:12.3]} 48.
d6 {[%clk 0:00:59.6]} 48... Bxd6 {[%clk 0:00:11.7]} 49. Nxh6 {[%clk 0:00:58.1]}
49... Bf4 {[%clk 0:00:09.3]} 50. Nf7 {[%clk 0:00:47]} 50... Bc1 {[%clk
0:00:08.4]} 51. b3 {[%clk 0:00:47.5]} 51... Bd2 {[%clk 0:00:05.4]} 52. Ne5
{[%clk 0:00:12.8]} 52... Bxc3 {[%clk 0:00:04.8]} 53. Nxc4 {[%clk 0:00:12.3]}
53... Kb4 {[%clk 0:00:04.9]} 54. Kf5 {[%clk 0:00:09.9]} 54... a4 {[%clk
0:00:02.2]} 55. Nb6 {[%clk 0:00:03.8]} 55... axb3 {[%clk 0:00:02.5]} 56. Nd5+
{[%clk 0:00:04.1]} 56... Kc4 {[%clk 0:00:02]} 57. Nxc3 {[%clk 0:00:04.3]} 57...
Kxc3 {[%clk 0:00:02.3]} 58. axb3 {[%clk 0:00:04]} 58... Kxb3 {[%clk 0:00:02.7]}
59. Kxg5 {[%clk 0:00:04.5]} 59... Kc4 {[%clk 0:00:02.8]} 60. h4 {[%clk
0:00:05.1]} 60... Kd5 {[%clk 0:00:03.6]} 61. Kf6 {[%clk 0:00:05.7]} 61... Kd6
{[%clk 0:00:02.9]} 62. h5 {[%clk 0:00:06.3]} 1-0

[Event "*** SCC Grand Prix: Titled Tuesday Blitz"]
[Site "Chess.com"]
[Date "2020.06.02"]
[Round "1"]
[White "Siniauski"]
[Black "bmt011"]
[Result "1-0"]
[WhiteElo "2503"]
[BlackElo "2071"]
[TimeControl "180+1"]
[EndTime "10:08:33 PDT"]
[Termination "Siniauski won by resignation"]

1. e4 {[%clk 0:03:00.9]} 1... e6 {[%clk 0:02:57.3]} 2. d4 {[%clk 0:03:00.7]}
2... d5 {[%clk 0:02:56.6]} 3. Nc3 {[%clk 0:03:00.8]} 3... Nf6 {[%clk 0:02:55.8]}
4. Bg5 {[%clk 0:02:59.7]} 4... Bb4 {[%clk 0:02:53.2]} 5. exd5 {[%clk 0:02:58.8]}
5... exd5 {[%clk 0:02:52.2]} 6. Qf3 {[%clk 0:02:56.6]} 6... Bxc3+ {[%clk
0:02:46.2]} 7. Qxc3 {[%clk 0:02:41.9]} 7... O-O {[%clk 0:02:39]} 8. O-O-O {[%clk
0:02:13.2]} 8... Ne4 {[%clk 0:02:31.2]} 9. Bxd8 {[%clk 0:02:11]} 9... Nxc3
{[%clk 0:02:30.5]} 10. bxc3 {[%clk 0:02:10.9]} 10... Rxd8 {[%clk 0:02:28.6]} 11.
c4 {[%clk 0:02:07.7]} 11... Be6 {[%clk 0:02:06.5]} 12. c5 {[%clk 0:01:58.4]}
12... b6 {[%clk 0:01:57.3]} 13. cxb6 {[%clk 0:01:57.4]} 13... axb6 {[%clk
0:01:57]} 14. Kb2 {[%clk 0:01:56.8]} 14... c5 {[%clk 0:01:55.7]} 15. Nf3 {[%clk
0:01:54.7]} 15... Nc6 {[%clk 0:01:52.8]} 16. c3 {[%clk 0:01:53.3]} 16... cxd4
{[%clk 0:01:49.2]} 17. Nxd4 {[%clk 0:01:50.7]} 17... Nxd4 {[%clk 0:01:43.9]} 18.
Rxd4 {[%clk 0:01:43.9]} 18... Ra5 {[%clk 0:01:37.9]} 19. Bd3 {[%clk 0:01:37.3]}
19... Rda8 {[%clk 0:01:31.6]} 20. Bb1 {[%clk 0:01:37.3]} 20... g6 {[%clk
0:01:05.3]} 21. Rhd1 {[%clk 0:01:36]} 21... Bf5 {[%clk 0:01:00.9]} 22. Rxd5
{[%clk 0:01:21.9]} 22... Bxb1 {[%clk 0:00:56.8]} 23. Rxa5 {[%clk 0:01:21.4]}
23... Rxa5 {[%clk 0:00:55.6]} 24. Kxb1 {[%clk 0:01:16.8]} 24... Rb5+ {[%clk
0:00:56]} 25. Kc2 {[%clk 0:01:16]} 25... Ra5 {[%clk 0:00:56.2]} 26. Kb3 {[%clk
0:01:04.9]} 26... Rb5+ {[%clk 0:00:53.9]} 27. Kc2 {[%clk 0:01:00.5]} 27... Ra5
{[%clk 0:00:54.1]} 28. Ra1 {[%clk 0:01:00.7]} 28... Rf5 {[%clk 0:00:52]} 29. f3
{[%clk 0:00:58.3]} 29... Rg5 {[%clk 0:00:52]} 30. g3 {[%clk 0:00:50.4]} 30...
Rh5 {[%clk 0:00:48.5]} 31. h4 {[%clk 0:00:50.5]} 31... g5 {[%clk 0:00:39.6]} 32.
hxg5 {[%clk 0:00:47.2]} 32... Rxg5 {[%clk 0:00:39.7]} 33. g4 {[%clk 0:00:47.1]}
33... f5 {[%clk 0:00:35.7]} 34. gxf5 {[%clk 0:00:39.8]} 34... Rxf5 {[%clk
0:00:35.4]} 35. Rg1+ {[%clk 0:00:39.2]} 35... Kf7 {[%clk 0:00:34.6]} 36. Rg3
{[%clk 0:00:37.7]} 36... Ra5 {[%clk 0:00:34]} 37. Kb3 {[%clk 0:00:37.8]} 37...
Rb5+ {[%clk 0:00:34.1]} 38. Kc4 {[%clk 0:00:38]} 38... Ra5 {[%clk 0:00:34.5]}
39. Rg2 {[%clk 0:00:37.4]} 39... Rf5 {[%clk 0:00:34.4]} 40. Rf2 {[%clk
0:00:37.3]} 40... h5 {[%clk 0:00:34.9]} 41. a4 {[%clk 0:00:27.5]} 41... h4
{[%clk 0:00:33.1]} 42. Rh2 {[%clk 0:00:22.8]} 42... Rf4+ {[%clk 0:00:31.3]} 43.
Kb3 {[%clk 0:00:23]} 43... Ke6 {[%clk 0:00:29.6]} 44. c4 {[%clk 0:00:21]} 44...
Kd6 {[%clk 0:00:29.5]} 45. Kb4 {[%clk 0:00:21.1]} 45... Kc6 {[%clk 0:00:28.2]}
46. Rh3 {[%clk 0:00:19.9]} 46... Rd4 {[%clk 0:00:27.6]} 47. Rh1 {[%clk
0:00:18.6]} 47... Rf4 {[%clk 0:00:28]} 48. Rh2 {[%clk 0:00:19.1]} 48... Rd4
{[%clk 0:00:27.8]} 49. Rg2 {[%clk 0:00:19.5]} 49... Rf4 {[%clk 0:00:28.1]} 50.
Rg6+ {[%clk 0:00:19.7]} 50... Kb7 {[%clk 0:00:28.6]} 51. Rh6 {[%clk 0:00:20.2]}
51... Ka6 {[%clk 0:00:25.7]} 52. Rh7 {[%clk 0:00:17.2]} 52... Rxf3 {[%clk
0:00:23.7]} 53. Rxh4 {[%clk 0:00:17.4]} 53... Rf1 {[%clk 0:00:24.2]} 54. Rh3
{[%clk 0:00:14]} 54... Rb1+ {[%clk 0:00:20.2]} 55. Rb3 {[%clk 0:00:13.9]} 55...
Rc1 {[%clk 0:00:20.7]} 56. Rh3 {[%clk 0:00:13.5]} 56... Rb1+ {[%clk 0:00:21.2]}
57. Kc3 {[%clk 0:00:14]} 57... Ra1 {[%clk 0:00:21.4]} 58. Rh8 {[%clk 0:00:11.1]}
58... Kb7 {[%clk 0:00:19.2]} 59. Kb3 {[%clk 0:00:11.2]} 59... Rb1+ {[%clk
0:00:19.4]} 60. Kc2 {[%clk 0:00:10.7]} 60... Ra1 {[%clk 0:00:19.7]} 61. Kb3
{[%clk 0:00:11.1]} 61... Rc1 {[%clk 0:00:20]} 62. Rh2 {[%clk 0:00:04.7]} 62...
Rb1+ {[%clk 0:00:19.1]} 63. Rb2 {[%clk 0:00:04.3]} 63... Rc1 {[%clk 0:00:19.3]}
64. Rc2 {[%clk 0:00:04]} 64... Ka6 {[%clk 0:00:19.7]} 65. Rxc1 {[%clk
0:00:03.7]} 65... Ka5 {[%clk 0:00:20.5]} 66. c5 {[%clk 0:00:04]} 66... b5 {[%clk
0:00:20]} 67. axb5 {[%clk 0:00:04.2]} 1-0